fUST/lending_fUST_20250121
["ID","MTS","AMOUNT","RATE_DAILY","PERIOD"]
[349819769,1737451832844,-500.0,0.00021917,3]
[349819770,1737451832854,-500.0,0.00021917,3]
[349819772,1737451832863,-500.0,0.00021917,3]
[349819773,1737451832873,-500.0,0.00021917,3]
[349819774,1737451832882,-500.0,0.00021917,3]
[349819775,1737451832892,-500.0,0.00021917,3]
[349819776,1737451832901,-590.1782655,0.00021917,3]
[349819778,1737451832911,-500.0,0.00021917,3]
[349819779,1737451832920,-500.0,0.00021917,3]
[349819781,1737451832930,-350.24,0.00021917,3]
[349819783,1737451832939,-500.0,0.00021917,3]
[349819785,1737451832949,-533.51168514,0.00021917,3]
[349819788,1737451832958,-500.0,0.00021917,3]
[349819790,1737451832968,-500.0,0.00021917,3]
[349819791,1737451832978,-500.0,0.00021917,3]
[349819793,1737451832987,-500.0,0.00021917,3]
[349819795,1737451832998,-500.0,0.00021917,3]
[349819797,1737451833007,-500.0,0.00021917,3]
[349819799,1737451833017,-500.0,0.00021917,3]
[349819801,1737451833030,-500.0,0.00021917,3]
[349819803,1737451833041,-812.94,0.00021917,3]
[349819805,1737451833051,-500.0,0.00021917,3]
[349819807,1737451833061,-501.21473839,0.00021917,3]
[349819809,1737451833071,-500.0,0.00021917,3]
[349819811,1737451833081,-500.0,0.00021917,3]
[349819813,1737451833091,-500.0,0.00021917,3]
[349819815,1737451833101,-500.0,0.00021917,3]
[349819817,1737451833111,-500.0,0.00021917,3]
[349819819,1737451833121,-500.0,0.00021917,3]
[349819821,1737451833132,-500.0,0.00021917,3]
[349819823,1737451833142,-500.0,0.00021917,3]
[349819824,1737451833151,-500.0,0.00021917,3]
[349819825,1737451833161,-593.14,0.00021917,3]
[349819826,1737451833171,-500.0,0.00021917,3]
[349819827,1737451833181,-503.35757614,0.00021917,3]
[349819828,1737451833191,-500.0,0.00021917,3]
[349819829,1737451833200,-500.0,0.00021917,3]
[349819830,1737451833210,-500.0,0.00021917,3]
[349819831,1737451833220,-1433.61,0.00021917,3]
[349819832,1737451833230,-500.0,0.00021917,3]
[349819833,1737451833239,-500.0,0.00021917,3]
[349819834,1737451833251,-500.0,0.00021917,3]
[349819835,1737451833261,-500.0,0.00021917,3]
[349819836,1737451833271,-500.0,0.00021917,3]
[349819837,1737451833281,-500.0,0.00021917,3]
[349819838,1737451833291,-367.54671706,0.00021917,3]
[349819839,1737451833301,-500.0,0.00021917,3]
[349819840,1737451833311,-500.0,0.00021917,3]
[349819841,1737451833321,-500.0,0.00021917,3]
[349819842,1737451833330,-186.36228371,0.00021917,3]
[349819843,1737451833340,-161.85,0.00021917,3]
[349819844,1737451833350,-500.0,0.00021917,3]
[349819845,1737451833359,-500.0,0.00021917,3]
[349819846,1737451833370,-500.0,0.00021917,3]
[349819847,1737451833383,-373.53,0.00021917,3]
[349819848,1737451833392,-500.0,0.00021917,3]
[349819849,1737451833402,-500.0,0.00021917,3]
[349819850,1737451833412,-500.0,0.00021917,3]
[349819851,1737451833422,-500.0,0.00021917,3]
[349819852,1737451833432,-509.30789237,0.00021917,3]
[349819853,1737451833442,-500.0,0.00021917,3]
[349819854,1737451833452,-501.08781509,0.00021917,3]
[349819855,1737451833462,-162.5648423,0.00021973,2]
[349819856,1737451833471,-241.2592205,0.00021973,2]
[349819857,1737451833481,-153.0,0.00021973,2]
[349819858,1737451833491,-153.0,0.00021973,2]
[349819859,1737451833503,-215.2109039,0.00021973,2]
[349819860,1737451833513,-154.1449863,0.00021973,2]
[349819861,1737451833523,-154.1449863,0.00021973,2]
[349819862,1737451833533,-215.2109039,0.00021973,2]
[349819863,1737451833543,-215.2109039,0.00021973,2]
[349819864,1737451833553,-154.1449863,0.00021973,2]
[349819865,1737451833563,-215.2109039,0.00021973,2]
[349819866,1737451833573,-153.0,0.00021973,2]
[349819867,1737451833583,-153.0,0.00021973,2]
[349819868,1737451833594,-306.0,0.00021973,2]
[349819869,1737451833604,-1297.0017094,0.00022,10]
[349819870,1737451833613,-29672.54450063,0.00022,7]
[349819871,1737451833623,-202.30468058,0.00022036,3]
[349819872,1737451833632,-1133.84,0.00022054,3]
[349819873,1737451833642,-500.0,0.00022054,3]
[349819874,1737451833652,-812.94,0.00022054,3]
[349819875,1737451833662,-500.0,0.00022054,3]
[349819876,1737451833672,-500.0,0.00022054,3]
[349819877,1737451833682,-1433.61,0.00022054,3]
[349819878,1737451833692,-500.0,0.00022054,3]
[349819879,1737451833701,-594.79090697,0.00022054,3]
[349819880,1737451833711,-500.0,0.00022054,3]
[349819881,1737451833720,-500.0,0.00022054,3]
[349819882,1737451833731,-500.0,0.00022054,3]
[349819883,1737451833741,-500.0,0.00022054,3]
[349819884,1737451833757,-500.0,0.00022054,3]
[349819885,1737451833767,-500.0,0.00022054,3]
[349819886,1737451833777,-573.84932836,0.00022078,2]
[349819887,1737451833787,-347.0,0.000221,10]
[349819888,1737451833797,-202.30468058,0.00022173,3]
[349819889,1737451833806,-500.0,0.00022189,3]
[349819890,1737451833816,-503.635266,0.00022189,3]
[349819891,1737451833825,-500.0,0.00022189,3]
[349819892,1737451833835,-500.0,0.00022189,3]
[349819893,1737451833845,-513.82521103,0.00022189,3]
[349819894,1737451833854,-501.7162061,0.00022189,3]
[349819895,1737451833864,-536.37488199,0.00022189,3]
[349819896,1737451833874,-500.0,0.00022189,3]
[349819897,1737451833883,-500.0,0.00022189,3]
[349819898,1737451833893,-480.32436663,0.00022189,3]
[349819899,1737451833902,-151.20617073,0.00022189,3]
[349819900,1737451833912,-500.0,0.00022189,3]
[349819901,1737451833921,-500.0,0.00022189,3]
[349819902,1737451833932,-500.0,0.00022189,3]
[349819903,1737451833942,-506.65245608,0.00022189,3]
[349819904,1737451833952,-500.0,0.00022189,3]
[349819905,1737451833962,-502.35972386,0.00022189,3]
[349819906,1737451833972,-500.0,0.00022189,3]
[349819907,1737451833982,-500.0,0.00022189,3]
[349819908,1737451833996,-1133.84,0.00022191,3]
[349819909,1737451834007,-500.0,0.00022191,3]
[349819910,1737451834017,-812.94,0.00022191,3]
[349819911,1737451834029,-500.0,0.00022191,3]
[349819912,1737451834039,-500.0,0.00022191,3]
[349819913,1737451834049,-1433.61,0.00022191,3]
[349819914,1737451834059,-500.0,0.00022191,3]
[349819915,1737451834070,-500.0,0.00022191,3]
[349819916,1737451834080,-500.0,0.00022191,3]
[349819917,1737451834091,-500.0,0.00022191,3]
[349819918,1737451834100,-500.0,0.00022191,3]
[349819919,1737451834110,-500.0,0.00022191,3]
[349819920,1737451834121,-500.0,0.00022191,3]
[349819921,1737451834130,-154.21540659,0.00022239,2]
[349819922,1737451834140,-166.1,0.00022302,2]
[349819923,1737451834150,-202.30468058,0.00022309,3]
[349819924,1737451834160,-409.80278521,0.00022326,3]
[349819925,1737451834170,-1133.84,0.00022328,3]
[349819926,1737451834180,-500.0,0.00022328,3]
[349819927,1737451834190,-812.94,0.00022328,3]
[349819928,1737451834200,-500.0,0.00022328,3]
[349819929,1737451834209,-500.0,0.00022328,3]
[349819930,1737451834219,-1433.61,0.00022328,3]
[349819931,1737451834349,-500.0,0.00022328,3]
[349819932,1737451834360,-500.0,0.00022328,3]
[349819933,1737451834373,-500.0,0.00022328,3]
[349819934,1737451834384,-500.0,0.00022328,3]
[349819935,1737451834395,-500.0,0.00022328,3]
[349819936,1737451834405,-500.0,0.00022328,3]
[349819937,1737451834417,-512.49048173,0.00022328,3]
[349819938,1737451834428,-500.0,0.00022397,2]
[349819939,1737451834438,-500.0,0.00022439,2]
[349819940,1737451834451,-202.30468058,0.00022445,3]
[349819941,1737451834463,-255.0,0.0002246,2]
[349819942,1737451834473,-1133.84,0.00022465,3]
[349819943,1737451834484,-500.0,0.00022465,3]
[349819944,1737451834495,-812.94,0.00022465,3]
[349819945,1737451834505,-500.0,0.00022465,3]
[349819946,1737451834515,-500.0,0.00022465,3]
[349819947,1737451834525,-1433.61,0.00022465,3]
[349819948,1737451834535,-500.0,0.00022465,3]
[349819949,1737451834545,-316.07287397,0.00022465,3]
[349819950,1737451834555,-500.0,0.00022465,3]
[349819951,1737451834564,-274.47363748,0.00022465,3]
[349819952,1737451834574,-500.0,0.00022465,3]
[349819953,1737451834585,-500.0,0.00022465,3]
[349819954,1737451834594,-420.0,0.00022467,2]
[349819955,1737451834604,-243.45061764,0.00022469,2]
[349819956,1737451834615,-261.09,0.0002249,2]
[349819957,1737451834624,-202.30468058,0.00022582,3]
[349819958,1737451834634,-1133.84,0.00022602,3]
[349819959,1737451834644,-500.0,0.00022602,3]
[349819960,1737451834653,-812.94,0.00022602,3]
[349819961,1737451834663,-429.07683812,0.00022602,3]
[349819962,1737451834672,-500.0,0.00022602,3]
[349819963,1737451834682,-1433.61,0.00022602,3]
[349819964,1737451834692,-500.0,0.00022602,3]
[349819965,1737451834702,-246.85350461,0.00022602,3]
[349819966,1737451834711,-500.0,0.00022602,3]
[349819967,1737451834720,-500.0,0.00022602,3]
[349819968,1737451834730,-395.0,0.00022651,2]
[349819969,1737451834739,-202.30468058,0.00022718,3]
[349819970,1737451834752,-1133.84,0.00022739,3]
[349819971,1737451834761,-170.88909017,0.00022739,3]
[349819972,1737451834770,-812.94,0.00022739,3]
[349819973,1737451834780,-500.0,0.00022739,3]
[349819974,1737451834790,-1433.61,0.00022739,3]
[349819975,1737451834799,-500.0,0.00022739,3]
[349819976,1737451834809,-500.0,0.00022739,3]
[349819977,1737451834818,-500.0,0.00022739,3]
[349819978,1737451834828,-1200.0,0.00022749,2]
[349819979,1737451834838,-154.21540659,0.00022766,2]
[349819980,1737451834848,-182.71,0.0002285,2]
[349819981,1737451834858,-202.30468058,0.00022855,3]
[349819982,1737451834867,-1133.84,0.00022876,3]
[349819983,1737451834877,-812.94,0.00022876,3]
[349819984,1737451834888,-500.0,0.00022876,3]
[349819985,1737451834897,-1433.61,0.00022876,3]
[349819986,1737451834907,-500.0,0.00022876,3]
[349819987,1737451834917,-500.0,0.00022876,3]
[349819988,1737451834927,-500.0,0.00022876,3]
[349819989,1737451834936,-1000.0,0.00022945,2]
[349819990,1737451834946,-1000.0,0.00022987,2]
[349819991,1737451834955,-202.30468058,0.00022991,3]
[349819992,1737451834965,-7438.69753278,0.00023,2]
[349819993,1737451834975,-7438.69753278,0.00023,3]
[349819994,1737451834985,-7438.69753278,0.00023,3]
[349819995,1737451834996,-1133.84,0.00023013,3]
[349819996,1737451835006,-812.94,0.00023013,3]
[349819997,1737451835015,-500.0,0.00023013,3]
[349819998,1737451835026,-1433.61,0.00023013,3]
[349819999,1737451835036,-500.0,0.00023013,3]
[349820000,1737451835045,-500.0,0.00023013,3]
[349820001,1737451835055,-614.74557592,0.00023013,3]
[349820002,1737451835065,-202.30468058,0.00023127,3]
[349820003,1737451835075,-1133.84,0.0002315,3]
[349820004,1737451835084,-812.94,0.0002315,3]
[349820005,1737451835093,-500.0,0.0002315,3]
[349820006,1737451835103,-1433.61,0.0002315,3]
[349820007,1737451835113,-500.0,0.0002315,3]
[349820008,1737451835123,-500.0,0.0002315,3]
[349820009,1737451835132,-296.747,0.0002323,2]
[349820010,1737451835141,-202.30468058,0.00023264,3]
[349820011,1737451835151,-1133.84,0.00023287,3]
[349820012,1737451835160,-812.94,0.00023287,3]
[349820013,1737451835170,-500.0,0.00023287,3]
[349820014,1737451835179,-1433.61,0.00023287,3]
[349820015,1737451835188,-500.0,0.00023287,3]
[349820016,1737451835198,-500.0,0.00023287,3]
[349820017,1737451835207,-154.21540659,0.00023292,2]
[349820018,1737451835217,-914.0,0.00023328,7]
[349820019,1737451835226,-260.11821101,0.00023398,2]
[349820020,1737451835235,-202.30468058,0.000234,3]
[349820021,1737451835244,-1133.84,0.00023424,3]
[349820022,1737451835254,-812.94,0.00023424,3]
[349820023,1737451835263,-500.0,0.00023424,3]
[349820024,1737451835272,-1433.61,0.00023424,3]
[349820025,1737451835281,-275.1394348,0.00023424,3]
[349820026,1737451835290,-500.0,0.00023424,3]
[349820027,1737451835299,-202.30468058,0.00023536,3]
[349820028,1737451835308,-1133.84,0.00023561,3]
[349820029,1737451835318,-812.94,0.00023561,3]
[349820030,1737451835326,-500.0,0.00023561,3]
[349820031,1737451835335,-1433.61,0.00023561,3]
[349820032,1737451835345,-500.0,0.00023561,3]
[349820033,1737451835354,-347.0,0.000236,10]
[349820034,1737451835363,-153.0,0.00023616,2]
[349820035,1737451835375,-202.30468058,0.00023673,3]
[349820036,1737451835384,-455.70474889,0.00023688,2]
[349820037,1737451835393,-200.0,0.00023697,2]
[349820038,1737451835403,-191.67687206,0.00023697,2]
[349820039,1737451835413,-200.0,0.00023697,2]
[349820040,1737451835423,-1133.84,0.00023698,3]
[349820041,1737451835432,-812.94,0.00023698,3]
[349820042,1737451835441,-1433.61,0.00023698,3]
[349820043,1737451835450,-500.0,0.00023698,3]
[349820044,1737451835460,-500.0,0.00023698,3]
[349820045,1737451835469,-202.30468058,0.00023809,3]
[349820046,1737451835479,-154.21540659,0.00023819,2]
[349820047,1737451835487,-1133.84,0.00023835,3]
[349820048,1737451835498,-812.94,0.00023835,3]
[349820049,1737451835507,-1433.61,0.00023835,3]
[349820050,1737451835516,-500.0,0.00023835,3]
[349820051,1737451835526,-500.0,0.00023835,3]
[349820052,1737451835535,-202.30468058,0.00023945,3]
[349820053,1737451835544,-1500.0,0.00023946,2]
[349820054,1737451835554,-1133.84,0.00023972,3]
[349820055,1737451835563,-812.94,0.00023972,3]
[349820056,1737451835572,-1433.61,0.00023972,3]
[349820057,1737451835582,-500.0,0.00023972,3]
[349820058,1737451835591,-500.0,0.00023972,3]
[349820059,1737451835600,-1500.0,0.00023989,2]
[349820060,1737451835609,-1000.0,0.00024,24]
[349820061,1737451835619,-22571.17756703,0.00024021,2]
[349820062,1737451835628,-202.30468058,0.00024082,3]
[349820063,1737451835637,-154.32,0.000241,31]
[349820064,1737451835646,-154.32,0.000241,31]
[349820065,1737451835655,-154.32,0.000241,31]
[349820066,1737451835664,-154.32,0.000241,31]
[349820067,1737451835673,-154.32,0.000241,31]
[349820068,1737451835682,-154.32,0.000241,31]
[349820069,1737451835691,-154.32,0.000241,31]
[349820070,1737451835700,-1133.84,0.00024109,3]
[349820071,1737451835709,-812.94,0.00024109,3]
[349820072,1737451835719,-1433.61,0.00024109,3]
[349820073,1737451835728,-500.0,0.00024109,3]
[349820074,1737451835738,-500.0,0.00024109,3]
[349820075,1737451835749,-2000.0,0.000242,2]
[349820076,1737451835759,-2000.0,0.000242,2]
[349820077,1737451835770,-202.30468058,0.00024218,3]
[349820078,1737451835779,-1133.84,0.00024246,3]
[349820079,1737451835788,-812.94,0.00024246,3]
[349820080,1737451835798,-1433.61,0.00024246,3]
[349820081,1737451835807,-500.0,0.00024246,3]
[349820082,1737451835816,-500.0,0.00024246,3]
[349820083,1737451835825,-151.0,0.000243,9]
[349820084,1737451835835,-154.21540659,0.00024345,2]
[349820085,1737451835844,-202.30468058,0.00024355,3]
[349820086,1737451835853,-1133.84,0.00024383,3]
[349820087,1737451835863,-812.94,0.00024383,3]
[349820088,1737451835872,-1433.61,0.00024383,3]
[349820089,1737451835881,-500.0,0.00024383,3]
[349820090,1737451835891,-500.0,0.00024383,3]
[349820091,1737451835900,-436.01582043,0.00024399,2]
[349820092,1737451835910,-449232.9570207,0.000244,30]
[349820093,1737451835919,-1619912.45689461,0.00024445,61]
[349820094,1737451835934,-2196.5795364,0.00024445,61]
[349820095,1737451835946,-277.96954574,0.00024445,61]
[349820096,1737451835957,-553.83063043,0.00024445,61]
[349820097,1737451835969,-426.18,0.00024445,61]
[349820126,1737451838446,-174.74410633,0.0002305,2]
[349820128,1737451838458,-27975.1216135,0.00024445,61]
[349820131,1737451838471,-19192.40380758,0.00024445,61]
[349820133,1737451838482,-7070.1297752,0.00024445,61]
[349820135,1737451838495,-12179.0,0.00024445,61]
[349823519,1737451965455,194.056535,0.00013973,2]
[349823523,1737452908832,220.310455,0.00013973,2]
[349823524,1737452938557,279.77256594,0.000189,2]
[349823525,1737452938590,18259.6553864,0.0002,2]
[349823567,1737453032654,-305.13298768,0.00020347,2]
[349823570,1737453032665,-220.310455,0.00020447,2]
[349823572,1737453032676,-500.0,0.00020613,2]
[349823574,1737453032687,-524.37610578,0.00021277,2]
[349823576,1737453032698,-160.0,0.00021697,2]
[349823578,1737453032709,-355.47,0.000219,2]
[349823581,1737453032720,-300.0,0.00021916,2]
[349823583,1737453032730,-154.29,0.00021917,2]
[349823585,1737453032742,-581.77940846,0.00021917,3]
[349823587,1737453032753,-507.70990707,0.00021917,3]
[349823589,1737453032764,-500.0,0.00021917,3]
[349823591,1737453032776,-500.0,0.00021917,3]
[349823593,1737453032787,-500.0,0.00021917,3]
[349823596,1737453032798,-500.0,0.00021917,3]
[349823598,1737453032809,-178.26708611,0.00021917,3]
[349823600,1737453032820,-500.0,0.00021917,3]
[349823602,1737453032831,-500.0,0.00021917,3]
[349823604,1737453032841,-500.0,0.00021917,3]
[349823605,1737453032851,-500.0,0.00021917,3]
[349823606,1737453032862,-500.0,0.00021917,3]
[349823608,1737453032873,-500.0,0.00022054,3]
[349823611,1737453032884,-312.0,0.000221,10]
[349823613,1737453032895,-500.0,0.00022191,3]
[349823615,1737453032904,-500.0,0.00022328,3]
[349823617,1737453032915,-500.0,0.00022465,3]
[349823619,1737453032925,-500.0,0.00022602,3]
[349823621,1737453032936,-500.0,0.00022739,3]
[349823623,1737453032947,-500.0,0.00022805,2]
[349823626,1737453032957,-500.0,0.00022876,3]
[349823628,1737453032968,-483.72285139,0.00022928,2]
[349823630,1737453032979,-878.25701321,0.00022954,2]
[349823632,1737453032989,-500.0,0.00022967,3]
[349823633,1737453033000,-500.0,0.00022967,3]
[349823635,1737453033013,-500.0,0.00022967,3]
[349823636,1737453033023,-500.0,0.00022967,3]
[349823638,1737453033034,-500.0,0.00022967,3]
[349823640,1737453033044,-500.0,0.00022967,3]
[349823642,1737453033053,-500.0,0.00022967,3]
[349823644,1737453033064,-500.0,0.00022967,3]
[349823646,1737453033074,-500.0,0.00022967,3]
[349823648,1737453033085,-500.0,0.00022967,3]
[349823650,1737453033096,-500.0,0.00022967,3]
[349823653,1737453033107,-500.0,0.00022967,3]
[349823655,1737453033119,-500.0,0.00022967,3]
[349823657,1737453033130,-500.0,0.00022967,3]
[349823659,1737453033142,-500.0,0.00022967,3]
[349823661,1737453033153,-500.0,0.00022967,3]
[349823663,1737453033164,-500.0,0.00022967,2]
[349823665,1737453033175,-500.0,0.00022967,3]
[349823667,1737453033186,-500.0,0.00022967,3]
[349823669,1737453033198,-364.40304209,0.00022967,3]
[349823672,1737453033209,-500.0,0.00022967,3]
[349823674,1737453033220,-334.34297622,0.00022967,3]
[349823676,1737453033232,-160.0,0.00022967,3]
[349823678,1737453033244,-500.0,0.00022967,3]
[349823680,1737453033257,-500.41949745,0.00022967,3]
[349823683,1737453033269,-331.34120714,0.00022967,3]
[349823685,1737453033281,-500.0,0.00022967,3]
[349823687,1737453033293,-500.0,0.00022967,3]
[349823689,1737453033305,-500.0,0.00022967,3]
[349823691,1737453033316,-500.0,0.00022967,3]
[349823693,1737453033328,-500.0,0.00022967,3]
[349823696,1737453033339,-500.0,0.00022967,3]
[349823698,1737453033351,-500.0,0.00022967,3]
[349823700,1737453033361,-500.0,0.00022967,3]
[349823702,1737453033371,-500.0,0.00022967,3]
[349823704,1737453033382,-500.0,0.00022967,3]
[349823706,1737453033393,-500.0,0.00022967,3]
[349823708,1737453033404,-528.59443545,0.00022967,3]
[349823710,1737453033414,-500.0,0.00022967,3]
[349823712,1737453033425,-500.0,0.00022967,3]
[349823714,1737453033435,-500.0,0.00022967,3]
[349823716,1737453033447,-500.0,0.00022967,3]
[349823718,1737453033458,-500.0,0.00022967,3]
[349823720,1737453033471,-607.01844515,0.00022967,3]
[349823722,1737453033483,-500.0,0.00022967,3]
[349823725,1737453033495,-504.72822134,0.00022967,3]
[349823727,1737453033507,-512.12283964,0.00022967,3]
[349823729,1737453033517,-500.0,0.00022967,3]
[349823731,1737453033528,-500.0,0.00022967,3]
[349823733,1737453033538,-502.74825781,0.00022967,3]
[349823735,1737453033548,-500.0,0.00022967,3]
[349823737,1737453033559,-500.0,0.00022967,3]
[349823739,1737453033570,-502.30353364,0.00022967,3]
[349823741,1737453033580,-500.0,0.00022967,3]
[349823743,1737453033590,-501.40193362,0.00022967,3]
[349823745,1737453033600,-425.48753673,0.00022967,3]
[349823747,1737453033611,-502.62077481,0.00022967,3]
[349823749,1737453033622,-500.0,0.00022967,3]
[349823752,1737453033632,-496.65104479,0.00022967,3]
[349823754,1737453033643,-500.0,0.00022967,3]
[349823756,1737453033654,-500.0,0.00022967,3]
[349823758,1737453033665,-501.17727655,0.00022967,3]
[349823760,1737453033675,-502.26799402,0.00022967,3]
[349823762,1737453033686,-500.0,0.00022967,3]
[349823764,1737453033696,-2295.266,0.00022967,2]
[349823766,1737453033706,-500.0,0.00023,2]
[349823768,1737453033717,-517.84,0.00023,2]
[349823770,1737453033727,-500.0,0.00023,2]
[349823772,1737453033739,-500.0,0.00023,2]
[349823774,1737453033751,-500.0,0.00023,2]
[349823776,1737453033762,-500.0,0.00023,2]
[349823779,1737453033772,-500.0,0.00023,2]
[349823781,1737453033783,-417.02902791,0.00023,2]
[349823822,1737453034285,-82.97097209,0.00023,2]
[349823824,1737453034296,-500.0,0.00023,2]
[349823827,1737453034307,-500.0,0.00023,2]
[349823829,1737453034318,-500.0,0.00023,2]
[349823831,1737453034329,-500.0,0.00023,2]
[349823833,1737453034340,-500.0,0.00023,2]
[349823835,1737453034350,-500.0,0.00023,2]
[349823837,1737453034361,-500.0,0.00023,2]
[349823839,1737453034371,-500.0,0.00023,2]
[349823841,1737453034382,-500.0,0.00023,2]
[349823843,1737453034393,-549.29801668,0.00023,3]
[349823845,1737453034407,-6889.3995161,0.00023,3]
[349823848,1737453034417,-500.0,0.00023013,3]
[349823850,1737453034428,-500.0,0.00023104,2]
[349823852,1737453034439,-500.0,0.00023104,3]
[349823854,1737453034450,-500.0,0.00023104,3]
[349823856,1737453034460,-379.03332119,0.00023104,3]
[349823874,1737453034611,-500.0,0.0002315,3]
[349823876,1737453034625,-284.366,0.0002318,2]
[349823878,1737453034635,-301.48549634,0.00023241,2]
[349824221,1737453038597,-317.21000001,0.00022927,3]
[349824418,1737453040627,-395.0,0.00022899,2]
[349824420,1737453040637,-182.78999999,0.00022927,3]
[349824422,1737453040646,-1689.35,0.00022927,3]
[349824424,1737453040658,-500.0,0.00022966,3]
[349824425,1737453040667,-500.0,0.00023064,3]
[349824428,1737453040677,-1689.35,0.00023064,3]
[349824430,1737453040687,-500.0,0.00023103,3]
[349824432,1737453040697,-1689.35,0.00023201,3]
[349824434,1737453040707,-500.0,0.0002324,3]
[349824436,1737453040717,-198.51450366,0.00023241,2]
[349824438,1737453040726,-500.0,0.00023241,3]
[349824439,1737453040737,-500.0,0.00023241,3]
[349824441,1737453040748,-500.0,0.00023287,3]
[349824444,1737453040758,-1689.35,0.00023338,3]
[349824446,1737453040767,-500.0,0.00023377,3]
[349824448,1737453040778,-311.94,0.00023378,2]
[349824450,1737453040788,-500.0,0.00023378,3]
[349824452,1737453040797,-500.0,0.00023378,3]
[349824454,1737453040807,-169.34240774,0.00023424,3]
[349824456,1737453040817,-500.0,0.00023515,3]
[349824458,1737453040826,-500.0,0.00023515,3]
[349824460,1737453040836,-312.0,0.000236,10]
[349824462,1737453040845,-500.0,0.00023652,3]
[349824464,1737453040854,-500.0,0.00023652,3]
[349824466,1737453040863,-500.0,0.00023789,3]
[349824468,1737453040873,-500.0,0.00023789,3]
[349824470,1737453040882,-420.0,0.00023817,2]
[349824471,1737453040891,-279.77256594,0.000239,2]
[349824472,1737453040903,-202.30468058,0.000239,3]
[349824473,1737453040912,-564.89346997,0.00023926,3]
[349824474,1737453040921,-500.0,0.00023926,3]
[349824475,1737453040930,-18322.03279634,0.00024022,2]
[349824476,1737453040942,-4249.14477069,0.00024022,2]
[349824477,1737453040951,-500.0,0.00024063,3]
[349824478,1737453040961,-154.34,0.000241,31]
[349824479,1737453040970,-154.34,0.000241,31]
[349824480,1737453040979,-154.34,0.000241,31]
[349824481,1737453040989,-154.34,0.000241,31]
[349824482,1737453040998,-149.15865403,0.000241,31]
[349824483,1737453041010,-5.18134597,0.000241,31]
[349824484,1737453041019,-154.34,0.000241,31]
[349824485,1737453041028,-154.34,0.000241,31]
[349824486,1737453041038,-500.0,0.00024199,3]
[349824487,1737453041047,-2000.0,0.000242,2]
[349824488,1737453041056,-2000.0,0.000242,2]
[349824489,1737453041065,-202.30468058,0.00024233,3]
[349824490,1737453041074,-7438.69753278,0.00024255,2]
[349824491,1737453041084,-500.0,0.00024336,3]
[349824492,1737453041093,-12448.76830962,0.00024341,3]
[349824493,1737453041103,-7438.69753278,0.00024341,3]
[349824494,1737453041112,-174.74410633,0.00024341,2]
[349824495,1737453041121,-500.0,0.0002444,2]
[349824496,1737453041131,-500.0,0.0002444,3]
[349824497,1737453041140,-500.0,0.0002444,3]
[349824498,1737453041152,-500.0,0.0002444,3]
[349824499,1737453041162,-500.0,0.0002444,3]
[349824500,1737453041171,-500.0,0.0002444,3]
[349824501,1737453041181,-515.80745849,0.0002444,3]
[349824503,1737453041191,-1254.36212558,0.0002444,2]
[349824505,1737453041201,-500.0,0.00024441,2]
[349824507,1737453041210,-500.0,0.00024441,2]